[Event "Croatian junior league 2021"]
[Site "Rabac"]
[Date "2021.04.07"]
[Round "4.4"]
[White "Dumancic, Simun"]
[Black "Moric, Ivan"]
[Result "0-1"]
[ECO "B98"]
[WhiteElo "1883"]
[BlackElo "1907"]
[Annotator "NA RC"]
[PlyCount "74"]
[EventDate "2021.04.06"]
[EventType "swiss"]
[EventCountry "CRO"]
[SourceTitle "playchess.com"]
[Source "ChessBase"]
[SourceQuality "1"]
[TimeControl "5400+30"]

1. e4 {[%emt 0:00:00]} c5 {[%emt 0:00:00]} 2. Nf3 {[%emt 0:00:03]} d6 {[%emt 0:00:00]} 3. d4 {[%emt 0:00:34]} cxd4 {[%emt 0:00:00]} 4. Nxd4 {[%emt 0:00:15]} Nf6 {[%emt 0:00:10]} 5. Nc3 {[%emt 0:00:27]} a6 {[%emt 0:00:10]} 6. Bg5 {[%emt 0:00:46]} e6 {[%emt 0:02:39]} 7. f4 {[%emt 0:01:04]} Be7 {[%emt 0:00:15]} 8. Qf3 {[%emt 0:00:44]} O-O {[%emt 0:02:32]} 9. O-O-O {[%emt 0:03:41]} Qc7 {[%emt 0:02:05]} 10. g4 {[%emt 0:04:01]} b5 {[%emt 0:02:24]} 11. Bxf6 {[%emt 0:12:19]} Bxf6 {[%emt 0:04:02]} 12. Nce2 {[%emt 0:08:12]} Bb7 {[%emt 0:03:33]} 13. g5 {[%emt 0:01:45]} Be7 {[%emt 0:02:38]} 14. Ng3 {[%emt 0:07:03]} Nc6 {[%emt 0:08:18]} 15. Nxc6 {[%emt 0:04:46]} Qxc6 {[%emt 0:00:28]} 16. h4 {[%emt 0:01:56]} Rac8 {[%emt 0:22:17]} 17. Bd3 {[%emt 0:02:46]} f5 {[%emt 0:09:07]} 18. gxf6 {[%emt 0:18:41]} Bxf6 {[%emt 0:01:30]} 19. Qg4 {[%emt 0:03:14]} Qe8 {[%emt 0:10:16]} 20. Rhf1 {[%emt 0:09:04]} Kh8 {[%emt 0:03:33]} 21. h5 {[%emt 0:03:35]} e5 {[%emt 0:06:24]} 22. Nf5 {[%emt 0:02:27]} Qe6 {[%emt 0:00:38]} 23. Kb1 {[%emt 0:00:52]} exf4 {[%emt 0:01:56]} 24. Qxf4 {[%emt 0:01:39]} Qe5 {[%emt 0:00:35]} 25. c3 {[%emt 0:00:36]} Qxf4 {[%emt 0:01:54]} 26. Rxf4 {[%emt 0:00:04]} Be5 {[%emt 0:00:36]} 27. Rg4 {[%emt 0:00:50]} Rc7 {[%emt 0:03:47]} 28. Rf1 {[%emt 0:04:02]} Bc8 {[%emt 0:01:08]} 29. Rgg1 {[%emt 0:02:07]} Rcf7 {[%emt 0:01:13]} 30. Ne3 {[%emt 0:01:30]} Be6 {[%emt 0:01:48]} 31. a4 {[%emt 0:01:09]} bxa4 {[%emt 0:02:10]} 32. Bxa6 {[%emt 0:00:21]} a3 {[%emt 0:01:36]} 33. Rxf7 {[%emt 0:00:45]} Bxf7 {[%emt 0:00:36]} 34. Rf1 {[%emt 0:00:17]} Kg8 {[%emt 0:01:07]} 35. Nd5 {[%emt 0:01:02]} Rb8 {[%emt 0:02:03]} 36. Nb4 {[%emt 0:00:32]} axb2 {[%emt 0:00:18]} 37. Kxb2 {[%emt 0:00:05]} Rxb4+ {[%emt 0:00:12]} 0-1

[Event "Croatian junior league 2021"]
[Site "Rabac"]
[Date "2021.04.07"]
[Round "4.10"]
[White "Klapac, Patrik"]
[Black "Stjepic, Borna"]
[Result "1-0"]
[ECO "B90"]
[WhiteElo "1780"]
[BlackElo "1825"]
[Annotator "NA RC"]
[PlyCount "67"]
[EventDate "2021.04.06"]
[EventType "swiss"]
[EventCountry "CRO"]
[SourceTitle "playchess.com"]
[Source "ChessBase"]
[SourceQuality "1"]
[TimeControl "5400+30"]

1. e4 {[%emt 0:00:00]} c5 {[%emt 0:00:00]} 2. Nf3 {[%emt 0:00:00]} d6 {[%emt 0:00:00]} 3. d4 {[%emt 0:00:00]} cxd4 {[%emt 0:00:00]} 4. Nxd4 {[%emt 0:00:00]} Nf6 {[%emt 0:00:00]} 5. Nc3 {[%emt 0:00:00]} a6 {[%emt 0:00:04]} 6. f3 {[%emt 0:00:04]} e5 {[%emt 0:00:40]} 7. Nb3 {[%emt 0:00:39]} Be7 {[%emt 0:00:12]} 8. Bd3 {[%emt 0:00:11]} Be6 {[%emt 0:01:52]} 9. Be3 {[%emt 0:00:10]} Nbd7 {[%emt 0:01:14]} 10. Qd2 {[%emt 0:00:31]} h5 {[%emt 0:02:01]} 11. O-O {[%emt 0:04:18]} b5 {[%emt 0:04:06]} 12. Rad1 {[%emt 0:02:19]} Rc8 {[%emt 0:03:18]} 13. h3 {[%emt 0:02:47]} Nb6 {[%emt 0:07:14]} 14. Qf2 {[%emt 0:06:39]} Nc4 {[%emt 0:09:19]} 15. Bc1 {[%emt 0:00:19]} h4 {[%emt 0:07:56]} 16. Nd2 {[%emt 0:11:48]} Nh5 {[%emt 0:05:22]} 17. Nxc4 {[%emt 0:03:37]} bxc4 {[%emt 0:00:02]} 18. Be2 {[%emt 0:00:08]} Bg5 {[%emt 0:09:29]} 19. Bxg5 {[%emt 0:08:31]} Qxg5 {[%emt 0:00:02]} 20. Kh2 {[%emt 0:01:05]} Rh6 {[%emt 0:08:02]} 21. Rxd6 {[%emt 0:07:54]} Nf4 {[%emt 0:00:34]} 22. Rfd1 {[%emt 0:04:13]} Rb8 {[%emt 0:12:35]} 23. Bf1 {[%emt 0:00:42]} Qe7 {[%emt 0:03:21]} 24. Qc5 {[%emt 0:06:06]} Rg6 {[%emt 0:04:39]} 25. Qxe5 {[%emt 0:08:23]} Rxb2 {[%emt 0:02:12]} 26. Rd8+ {[%emt 0:02:56]} Qxd8 {[%emt 0:00:02]} 27. Rxd8+ {[%emt 0:00:14]} Kxd8 {[%emt 0:00:06]} 28. Qxf4 {[%emt 0:00:04]} Rxc2 {[%emt 0:00:37]} 29. Qxh4+ {[%emt 0:03:25]} Kd7 {[%emt 0:00:31]} 30. e5 {[%emt 0:00:50]} Rd2 {[%emt 0:01:30]} 31. Qe1 {[%emt 0:01:40]} Rd4 {[%emt 0:00:55]} 32. Qe3 {[%emt 0:00:36]} Rh4 {[%emt 0:00:31]} 33. Ne4 {[%emt 0:00:20]} Bf5 {[%emt 0:01:29]} 34. Bxc4 {[%emt 0:02:01]} 1-0

[Event "Croatian junior league 2021"]
[Site "Rabac"]
[Date "2021.04.07"]
[Round "4.11"]
[White "Vukojevic, Toni"]
[Black "Jakovic, Roko"]
[Result "1/2-1/2"]
[ECO "B50"]
[WhiteElo "1538"]
[BlackElo "1846"]
[Annotator "NA RC"]
[PlyCount "146"]
[EventDate "2021.04.06"]
[EventType "swiss"]
[EventCountry "CRO"]
[SourceTitle "playchess.com"]
[Source "ChessBase"]
[SourceQuality "1"]
[TimeControl "5400+30"]

1. e4 {[%emt 0:00:00]} c5 {[%emt 0:00:00]} 2. Nf3 {[%emt 0:00:00]} d6 {[%emt 0:00:00]} 3. c3 {[%emt 0:00:00]} Nf6 {[%emt 0:00:15]} 4. Bd3 {[%emt 0:00:00]} Nc6 {[%emt 0:01:05]} 5. Bc2 {[%emt 0:00:00]} Bg4 {[%emt 0:02:33]} 6. h3 {[%emt 0:00:20]} Bh5 {[%emt 0:00:20]} 7. O-O {[%emt 0:00:22]} e5 {[%emt 0:01:51]} 8. d3 {[%emt 0:01:12]} Be7 {[%emt 0:00:33]} 9. Be3 {[%emt 0:00:19]} O-O {[%emt 0:00:34]} 10. Nbd2 {[%emt 0:00:33]} Rc8 {[%emt 0:03:02]} 11. Rc1 {[%emt 0:05:03]} b5 {[%emt 0:04:26]} 12. a3 {[%emt 0:04:08]} a5 {[%emt 0:02:15]} 13. Qe2 {[%emt 0:06:13]} Qd7 {[%emt 0:14:19]} 14. Rfd1 {[%emt 0:03:57]} Rfe8 {[%emt 0:00:00]} 15. a4 {[%emt 0:00:59]} b4 {[%emt 0:01:30]} 16. Nc4 {[%emt 0:01:16]} Qc7 {[%emt 0:04:04]} 17. Bb3 {[%emt 0:07:17]} Rcd8 {[%emt 0:05:11]} 18. Ncd2 {[%emt 0:01:42]} Qb7 {[%emt 0:09:21]} 19. g4 {[%emt 0:06:30]} Bg6 {[%emt 0:01:07]} 20. Bg5 {[%emt 0:02:07]} h6 {[%emt 0:02:13]} 21. Bxf6 {[%emt 0:00:12]} Bxf6 {[%emt 0:00:24]} 22. Bd5 {[%emt 0:00:36]} Qc7 {[%emt 0:05:24]} 23. Nf1 {[%emt 0:02:10]} bxc3 {[%emt 0:04:23]} 24. bxc3 {[%emt 0:00:17]} Rb8 {[%emt 0:01:00]} 25. Rb1 {[%emt 0:00:07]} Rb6 {[%emt 0:04:17]} 26. Ne3 {[%emt 0:00:17]} Reb8 {[%emt 0:01:29]} 27. Qc2 {[%emt 0:00:12]} Bd8 {[%emt 0:08:00]} 28. Nc4 {[%emt 0:00:30]} Rxb1 {[%emt 0:00:57]} 29. Rxb1 {[%emt 0:00:06]} Ne7 {[%emt 0:00:52]} 30. Ne3 {[%emt 0:03:28]} Rxb1+ {[%emt 0:05:46]} 31. Qxb1 {[%emt 0:00:12]} Qd7 {[%emt 0:03:08]} 32. Qb3 {[%emt 0:00:12]} Kf8 {[%emt 0:00:56]} 33. Nd2 {[%emt 0:00:21]} Nxd5 34. Nxd5 {[%emt 0:00:15]} f6 {[%emt 0:01:46]} 35. Qb5 {[%emt 0:01:04]} Be8 {[%emt 0:01:20]} 36. Qxd7 {[%emt 0:02:10]} Bxd7 {[%emt 0:00:08]} 37. Nc4 {[%emt 0:00:10]} Bxa4 {[%emt 0:02:03]} 38. Nxd6 {[%emt 0:00:15]} Bc2 {[%emt 0:07:24]} 39. Nb7 {[%emt 0:02:19]} a4 {[%emt 0:02:29]} 40. Nxc5 {[%emt 0:06:05]} Be7 {[%emt 0:00:22]} 41. Ne3 {[%emt 0:02:25]} Bxc5 {[%emt 0:01:48]} 42. Nxc2 {[%emt 0:00:12]} a3 {[%emt 0:00:24]} 43. Kf1 {[%emt 0:00:06]} a2 {[%emt 0:00:07]} 44. Ke2 {[%emt 0:00:44]} Ba3 {[%emt 0:00:06]} 45. d4 {[%emt 0:01:42]} Bb2 {[%emt 0:01:17]} 46. Kd3 {[%emt 0:00:09]} exd4 {[%emt 0:01:04]} 47. cxd4 {[%emt 0:00:10]} a1=Q {[%emt 0:00:08]} 48. Nxa1 {[%emt 0:00:03]} Bxa1 {[%emt 0:00:06]} 49. f4 {[%emt 0:00:16]} Bb2 {[%emt 0:00:57]} 50. e5 {[%emt 0:00:20]} Ke7 {[%emt 0:00:23]} 51. Ke4 {[%emt 0:00:15]} fxe5 {[%emt 0:01:47]} 52. fxe5 {[%emt 0:00:10]} g6 {[%emt 0:00:22]} 53. Kd5 {[%emt 0:01:39]} h5 {[%emt 0:00:33]} 54. gxh5 {[%emt 0:00:33]} gxh5 {[%emt 0:00:01]} 55. Ke4 {[%emt 0:00:19]} h4 {[%emt 0:00:54]} 56. d5 {[%emt 0:00:18]} Bc3 {[%emt 0:00:24]} 57. Kf5 {[%emt 0:00:11]} Bd4 {[%emt 0:00:44]} 58. d6+ {[%emt 0:01:31]} Kd7 {[%emt 0:00:25]} 59. Ke4 {[%emt 0:00:05]} Bc3 {[%emt 0:00:25]} 60. Kd5 {[%emt 0:00:04]} Bd2 {[%emt 0:00:42]} 61. e6+ {[%emt 0:00:10]} Ke8 {[%emt 0:00:32]} 62. Kc6 {[%emt 0:00:16]} Ba5 {[%emt 0:00:28]} 63. Kd5 {[%emt 0:00:54]} Bc3 {[%emt 0:00:20]} 64. Ke4 {[%emt 0:00:12]} Bf6 {[%emt 0:00:34]} 65. Kf5 {[%emt 0:00:07]} Bd8 {[%emt 0:00:20]} 66. Ke5 {[%emt 0:01:40]} Bg5 {[%emt 0:00:12]} 67. Kf5 {[%emt 0:03:47]} Bd8 {[%emt 0:00:06]} 68. Kg6 {[%emt 0:00:26]} Kf8 {[%emt 0:00:14]} 69. Kh5 {[%emt 0:02:37]} Bf6 {[%emt 0:01:00]} 70. Kg6 {[%emt 0:01:25]} Bd8 {[%emt 0:00:33]} 71. Kf5 {[%emt 0:00:10]} Ke8 {[%emt 0:00:30]} 72. Ke5 {[%emt 0:00:31]} Bg5 {[%emt 0:00:19]} 73. Kd5 {[%emt 0:00:05]} Kd8 {[%emt 0:00:58]} 1/2-1/2

[Event "Croatian junior league 2021"]
[Site "Rabac"]
[Date "2021.04.07"]
[Round "4.15"]
[White "Zekic, Patrik"]
[Black "Hergotic, Mihael"]
[Result "1/2-1/2"]
[ECO "D52"]
[WhiteElo "1731"]
[BlackElo "1476"]
[Annotator "NA RC"]
[PlyCount "98"]
[EventDate "2021.04.06"]
[EventType "swiss"]
[EventCountry "CRO"]
[SourceTitle "playchess.com"]
[Source "ChessBase"]
[SourceQuality "1"]
[TimeControl "5400+30"]

1. d4 {[%emt 0:01:35]} d5 {[%emt 0:00:12]} 2. c4 {[%emt 0:00:22]} e6 {[%emt 0:00:28]} 3. Nc3 {[%emt 0:00:12]} Nf6 {[%emt 0:00:06]} 4. Bg5 {[%emt 0:00:20]} c6 {[%emt 0:00:52]} 5. e3 {[%emt 0:00:57]} Nbd7 {[%emt 0:00:10]} 6. Nf3 {[%emt 0:00:37]} Qa5 {[%emt 0:00:11]} 7. Bxf6 {[%emt 0:03:12]} Nxf6 {[%emt 0:00:02]} 8. Nd2 {[%emt 0:00:41]} Be7 {[%emt 0:01:25]} 9. Bd3 {[%emt 0:00:10]} O-O {[%emt 0:00:32]} 10. O-O {[%emt 0:00:06]} Qc7 {[%emt 0:00:45]} 11. Rc1 {[%emt 0:01:05]} Re8 {[%emt 0:01:07]} 12. h3 {[%emt 0:06:48]} Bf8 {[%emt 0:03:59]} 13. Qf3 {[%emt 0:19:21]} Qd7 {[%emt 0:01:20]} 14. Qg3 {[%emt 0:09:35]} Bd6 {[%emt 0:02:52]} 15. Qh4 {[%emt 0:04:44]} Be7 {[%emt 0:00:14]} 16. Qg3 {[%emt 0:06:23]} Bd6 {[%emt 0:00:02]} 17. Qf3 {[%emt 0:03:45]} b6 {[%emt 0:02:40]} 18. cxd5 {[%emt 0:00:31]} exd5 {[%emt 0:00:42]} 19. e4 {[%emt 0:04:54]} dxe4 {[%emt 0:02:39]} 20. Ncxe4 {[%emt 0:06:10]} Nxe4 {[%emt 0:09:34]} 21. Bxe4 {[%emt 0:01:58]} Bb7 {[%emt 0:01:03]} 22. Bxc6 {[%emt 0:01:20]} Bxc6 {[%emt 0:00:08]} 23. Qxc6 {[%emt 0:00:08]} Qxc6 {[%emt 0:00:30]} 24. Rxc6 {[%emt 0:00:18]} Bf4 {[%emt 0:00:32]} 25. Nf3 {[%emt 0:02:14]} Re2 {[%emt 0:00:10]} 26. g3 {[%emt 0:03:07]} Bh6 {[%emt 0:00:55]} 27. Rb1 {[%emt 0:04:39]} Rae8 {[%emt 0:01:06]} 28. Kf1 {[%emt 0:00:45]} g6 {[%emt 0:02:15]} 29. Re1 {[%emt 0:02:03]} Rxe1+ {[%emt 0:03:33]} 30. Nxe1 {[%emt 0:00:40]} Rd8 {[%emt 0:00:28]} 31. Nf3 {[%emt 0:00:29]} Bg7 {[%emt 0:00:12]} 32. Rc4 {[%emt 0:00:51]} Re8 {[%emt 0:01:12]} 33. Rc2 {[%emt 0:01:53]} f5 {[%emt 0:00:02]} 34. Rd2 {[%emt 0:00:46]} Kf7 {[%emt 0:01:16]} 35. Ne1 {[%emt 0:00:31]} Ke6 {[%emt 0:00:55]} 36. Re2+ {[%emt 0:01:19]} Kd7 {[%emt 0:00:21]} 37. Rxe8 {[%emt 0:00:29]} Kxe8 {[%emt 0:00:02]} 38. Nc2 {[%emt 0:00:07]} Kd7 {[%emt 0:00:18]} 39. Ke2 {[%emt 0:00:07]} Kd6 {[%emt 0:00:11]} 40. Kd3 {[%emt 0:00:05]} g5 {[%emt 0:00:47]} 41. g4 {[%emt 0:06:46]} fxg4 {[%emt 0:02:09]} 42. hxg4 {[%emt 0:00:04]} Bf6 {[%emt 0:00:39]} 43. Ke4 {[%emt 0:00:23]} Ke6 {[%emt 0:00:26]} 44. Ne3 {[%emt 0:00:41]} Bd8 {[%emt 0:00:53]} 45. Nf5 {[%emt 0:01:16]} a5 {[%emt 0:00:27]} 46. d5+ {[%emt 0:00:53]} Kf6 {[%emt 0:00:33]} 47. b3 {[%emt 0:00:59]} Bc7 {[%emt 0:00:44]} 48. d6 {[%emt 0:00:21]} Bd8 {[%emt 0:00:02]} 49. Kd5 {[%emt 0:00:10]} h5 {[%emt 0:09:10]} 1/2-1/2

[Event "Croatian junior league 2021"]
[Site "Rabac"]
[Date "2021.04.07"]
[Round "4.16"]
[White "Damjanovic, Stjepan"]
[Black "Bunic, Emanuel"]
[Result "1-0"]
[ECO "C54"]
[WhiteElo "1890"]
[BlackElo "1839"]
[Annotator "NA RC"]
[PlyCount "160"]
[EventDate "2021.04.06"]
[EventType "swiss"]
[EventCountry "CRO"]
[SourceTitle "playchess.com"]
[Source "ChessBase"]
[SourceQuality "1"]
[TimeControl "5400+30"]

1. e4 {[%emt 0:00:00]} e5 {[%emt 0:00:00]} 2. Nf3 {[%emt 0:00:00]} Nc6 {[%emt 0:00:00]} 3. Bc4 {[%emt 0:00:06]} Bc5 {[%emt 0:00:27]} 4. d3 {[%emt 0:00:13]} Nf6 {[%emt 0:00:06]} 5. c3 {[%emt 0:00:13]} d6 {[%emt 0:00:53]} 6. O-O {[%emt 0:00:11]} O-O {[%emt 0:00:47]} 7. h3 {[%emt 0:00:27]} a5 {[%emt 0:00:27]} 8. Nbd2 {[%emt 0:00:31]} h6 {[%emt 0:00:25]} 9. Re1 {[%emt 0:00:31]} Be6 {[%emt 0:00:40]} 10. Bb3 {[%emt 0:01:52]} Bxb3 {[%emt 0:03:35]} 11. Qxb3 {[%emt 0:03:09]} a4 {[%emt 0:00:49]} 12. Qc2 {[%emt 0:01:13]} Re8 {[%emt 0:01:20]} 13. Nf1 {[%emt 0:01:42]} Qd7 {[%emt 0:03:04]} 14. Be3 {[%emt 0:01:28]} Bxe3 {[%emt 0:00:54]} 15. Nxe3 {[%emt 0:00:36]} Nh5 {[%emt 0:03:28]} 16. Nf5 {[%emt 0:05:16]} Nf4 {[%emt 0:03:46]} 17. Kh2 {[%emt 0:01:52]} Ne7 {[%emt 0:04:47]} 18. Nxe7+ {[%emt 0:07:21]} Rxe7 {[%emt 0:01:03]} 19. Qd2 {[%emt 0:01:02]} Kh7 {[%emt 0:08:12]} 20. Rad1 {[%emt 0:02:58]} g5 {[%emt 0:01:54]} 21. Qe3 {[%emt 0:04:06]} Rg8 {[%emt 0:02:56]} 22. d4 {[%emt 0:05:49]} f6 {[%emt 0:01:01]} 23. dxe5 {[%emt 0:02:21]} fxe5 {[%emt 0:00:45]} 24. Ng1 {[%emt 0:01:32]} g4 {[%emt 0:16:42]} 25. h4 {[%emt 0:04:38]} Rf7 {[%emt 0:01:25]} 26. g3 {[%emt 0:01:20]} Qe7 {[%emt 0:01:38]} 27. Rd2 {[%emt 0:03:19]} Rgf8 {[%emt 0:05:01]} 28. Rf1 {[%emt 0:06:54]} Nh5 {[%emt 0:07:00]} 29. Kg2 {[%emt 0:02:16]} Qe6 {[%emt 0:01:04]} 30. a3 {[%emt 0:03:34]} Qg6 {[%emt 0:00:57]} 31. Qd3 {[%emt 0:03:12]} Nf6 {[%emt 0:01:46]} 32. Re1 {[%emt 0:01:29]} Nd7 {[%emt 0:00:37]} 33. Qc2 {[%emt 0:08:04]} Nc5 {[%emt 0:00:35]} 34. Rde2 {[%emt 0:01:01]} Qe6 {[%emt 0:02:45]} 35. Rf1 {[%emt 0:02:05]} Rf6 {[%emt 0:05:21]} 36. Re3 {[%emt 0:01:21]} Nb3 {[%emt 0:02:19]} 37. Ne2 {[%emt 0:03:17]} Rf3 {[%emt 0:01:37]} 38. Nc1 {[%emt 0:03:46]} Rxe3 {[%emt 0:01:57]} 39. fxe3 {[%emt 0:00:11]} Rxf1 {[%emt 0:00:50]} 40. Kxf1 {[%emt 0:00:23]} Nxc1 {[%emt 0:00:39]} 41. Qxc1 {[%emt 0:00:19]} Qc4+ {[%emt 0:00:17]} 42. Kf2 {[%emt 0:00:13]} Qxe4 {[%emt 0:00:12]} 43. Qd1 {[%emt 0:00:10]} Kg6 {[%emt 0:00:37]} 44. Qe2 {[%emt 0:00:05]} c6 {[%emt 0:00:37]} 45. Qd1 {[%emt 0:00:11]} d5 {[%emt 0:00:46]} 46. Qe2 {[%emt 0:00:10]} Kf6 {[%emt 0:00:48]} 47. Qd1 {[%emt 0:00:11]} Ke6 {[%emt 0:00:34]} 48. Qe2 {[%emt 0:00:17]} Kd6 {[%emt 0:00:34]} 49. Qd1 {[%emt 0:00:18]} Kc5 {[%emt 0:03:59]} 50. Qe2 {[%emt 0:00:29]} h5 {[%emt 0:01:18]} 51. Qd1 {[%emt 0:00:13]} b5 {[%emt 0:01:04]} 52. Qe2 {[%emt 0:00:13]} Qh1 {[%emt 0:01:34]} 53. Qd3 {[%emt 0:02:19]} Qg2+ {[%emt 0:00:23]} 54. Ke1 {[%emt 0:00:13]} Qxg3+ {[%emt 0:00:17]} 55. Kd2 {[%emt 0:00:06]} Qg2+ {[%emt 0:00:22]} 56. Kc1 {[%emt 0:00:19]} Qe4 {[%emt 0:00:18]} 57. Qf1 {[%emt 0:01:11]} Qxe3+ {[%emt 0:00:29]} 58. Kb1 {[%emt 0:00:04]} Qf4 {[%emt 0:00:43]} 59. Qg1+ {[%emt 0:00:15]} d4 {[%emt 0:00:29]} 60. cxd4+ {[%emt 0:00:03]} exd4 {[%emt 0:00:25]} 61. Qe1 {[%emt 0:00:08]} Kd5 {[%emt 0:01:28]} 62. Ka1 {[%emt 0:00:29]} Qe4 {[%emt 0:01:14]} 63. Qf1 {[%emt 0:00:48]} d3 {[%emt 0:01:11]} 64. Qf7+ {[%emt 0:00:12]} Kd4 {[%emt 0:00:57]} 65. Qf2+ {[%emt 0:00:25]} Kc4 {[%emt 0:01:26]} 66. Qf7+ {[%emt 0:00:10]} Qd5 {[%emt 0:00:25]} 67. Qf4+ {[%emt 0:00:06]} Kb3 {[%emt 0:01:36]} 68. Qb4+ {[%emt 0:01:14]} Kc2 {[%emt 0:00:10]} 69. Qc3+ {[%emt 0:00:10]} Kd1 {[%emt 0:00:08]} 70. Qf6 {[%emt 0:00:58]} d2 {[%emt 0:00:56]} 71. Qf1+ {[%emt 0:00:12]} Kc2 {[%emt 0:00:21]} 72. Qb1+ {[%emt 0:00:05]} Kb3 {[%emt 0:00:29]} 73. Qd1+ {[%emt 0:00:39]} Kc4 {[%emt 0:00:34]} 74. Qc2+ {[%emt 0:00:04]} Kd4 {[%emt 0:00:07]} 75. Qxd2+ {[%emt 0:00:10]} Ke4 {[%emt 0:00:50]} 76. Qc2+ {[%emt 0:00:37]} Kf3 {[%emt 0:00:56]} 77. Qc3+ {[%emt 0:00:20]} Kg2 {[%emt 0:00:22]} 78. Qe1 {[%emt 0:03:32]} g3 {[%emt 0:01:43]} 79. b4 {[%emt 0:06:10]} Qd4+ {[%emt 0:01:13]} 80. Ka2 {[%emt 0:00:10]} Qf2+ {[%emt 0:00:36]} 1-0

[Event "Croatian junior league 2021"]
[Site "Rabac"]
[Date "2021.04.07"]
[Round "4.17"]
[White "Zadro, Matej"]
[Black "Mandaric, Fran"]
[Result "1-0"]
[ECO "B78"]
[WhiteElo "1742"]
[BlackElo "1684"]
[Annotator "NA RC"]
[PlyCount "89"]
[EventDate "2021.04.06"]
[EventType "swiss"]
[EventCountry "CRO"]
[SourceTitle "playchess.com"]
[Source "ChessBase"]
[SourceQuality "1"]
[TimeControl "5400+30"]

1. e4 {[%emt 0:00:00]} c5 {[%emt 0:00:00]} 2. Nf3 {[%emt 0:00:00]} Nc6 {[%emt 0:00:00]} 3. d4 {[%emt 0:00:00]} cxd4 {[%emt 0:00:00]} 4. Nxd4 {[%emt 0:00:02]} g6 {[%emt 0:00:07]} 5. Be3 {[%emt 0:00:11]} Bg7 {[%emt 0:00:13]} 6. Nc3 {[%emt 0:00:11]} d6 {[%emt 0:00:12]} 7. Bc4 {[%emt 0:01:28]} Nf6 {[%emt 0:00:28]} 8. f3 {[%emt 0:00:05]} O-O {[%emt 0:00:12]} 9. Qd2 {[%emt 0:00:03]} Ne5 {[%emt 0:02:34]} 10. Bb3 {[%emt 0:01:14]} Bd7 {[%emt 0:01:54]} 11. O-O-O {[%emt 0:05:05]} a6 {[%emt 0:04:37]} 12. g4 {[%emt 0:03:29]} b5 {[%emt 0:03:07]} 13. h4 {[%emt 0:06:10]} b4 {[%emt 0:18:32]} 14. Nd5 {[%emt 0:03:56]} Nxd5 {[%emt 0:07:21]} 15. Bxd5 {[%emt 0:00:23]} Rb8 {[%emt 0:00:30]} 16. h5 {[%emt 0:11:39]} Nxf3 {[%emt 0:16:12]} 17. Nxf3 {[%emt 0:02:27]} Bxg4 {[%emt 0:00:20]} 18. hxg6 {[%emt 0:05:32]} e6 {[%emt 0:06:34]} 19. Bh6 {[%emt 0:21:40]} Qf6 {[%emt 0:20:03]} 20. Bxg7 {[%emt 0:01:47]} Qxg7 {[%emt 0:00:17]} 21. Rdg1 {[%emt 0:00:24]} exd5 {[%emt 0:01:11]} 22. Rxg4 {[%emt 0:01:32]} fxg6 {[%emt 0:01:41]} 23. Ng5 {[%emt 0:02:42]} d4 {[%emt 0:08:15]} 24. Ne6 {[%emt 0:10:15]} Qd7 {[%emt 0:00:34]} 25. Nxf8 {[%emt 0:00:29]} Qxg4 {[%emt 0:00:17]} 26. Nxh7 {[%emt 0:00:06]} Qf3 {[%emt 0:01:11]} 27. Qh6 {[%emt 0:00:34]} Qe3+ {[%emt 0:02:10]} 28. Qxe3 {[%emt 0:00:45]} dxe3 {[%emt 0:00:06]} 29. Nf6+ {[%emt 0:02:31]} Kg7 {[%emt 0:00:06]} 30. Nd5 {[%emt 0:00:09]} Re8 {[%emt 0:01:18]} 31. Rh4 {[%emt 0:02:59]} e2 {[%emt 0:01:26]} 32. Kd2 {[%emt 0:00:46]} a5 {[%emt 0:00:22]} 33. Kxe2 {[%emt 0:00:29]} Re5 {[%emt 0:00:07]} 34. Kd3 {[%emt 0:01:00]} g5 {[%emt 0:00:10]} 35. Rh1 {[%emt 0:01:01]} g4 {[%emt 0:00:18]} 36. Ke3 {[%emt 0:00:06]} Kg6 {[%emt 0:00:19]} 37. Rh8 {[%emt 0:00:06]} Kg5 {[%emt 0:00:14]} 38. Rg8+ {[%emt 0:00:31]} Kh4 {[%emt 0:00:15]} 39. Kf4 {[%emt 0:00:07]} Kh3 {[%emt 0:00:38]} 40. Rh8+ {[%emt 0:00:25]} Kg2 {[%emt 0:00:17]} 41. Ne3+ {[%emt 0:00:05]} Kg1 {[%emt 0:00:14]} 42. Nxg4 {[%emt 0:00:19]} Rc5 {[%emt 0:00:30]} 43. Ne3 {[%emt 0:00:07]} a4 {[%emt 0:00:13]} 44. Rd8 {[%emt 0:00:30]} Rh5 {[%emt 0:00:43]} 45. Rxd6 {[%emt 0:00:27]} 1-0

[Event "Croatian junior league 2021"]
[Site "Rabac"]
[Date "2021.04.07"]
[Round "4.18"]
[White "Juric, Ester"]
[Black "Horcicka, Jan"]
[Result "0-1"]
[ECO "D13"]
[WhiteElo "1587"]
[BlackElo "1698"]
[Annotator "NA RC"]
[PlyCount "62"]
[EventDate "2021.04.06"]
[EventType "swiss"]
[EventCountry "CRO"]
[SourceTitle "playchess.com"]
[Source "ChessBase"]
[SourceQuality "1"]
[TimeControl "5400+30"]

1. d4 {[%emt 0:00:00]} d5 {[%emt 0:00:00]} 2. Nf3 {[%emt 0:00:13]} Nf6 {[%emt 0:00:45]} 3. c4 {[%emt 0:00:51]} c6 {[%emt 0:00:45]} 4. cxd5 {[%emt 0:01:11]} cxd5 {[%emt 0:00:05]} 5. Nc3 {[%emt 0:00:45]} Nc6 {[%emt 0:00:52]} 6. Bf4 {[%emt 0:02:15]} a6 {[%emt 0:01:58]} 7. e3 {[%emt 0:02:35]} Bf5 {[%emt 0:01:04]} 8. Bd3 {[%emt 0:02:44]} Bxd3 {[%emt 0:05:24]} 9. Qxd3 {[%emt 0:00:05]} e6 {[%emt 0:00:02]} 10. O-O {[%emt 0:02:21]} Be7 {[%emt 0:00:49]} 11. a3 {[%emt 0:01:36]} Rc8 {[%emt 0:00:26]} 12. b4 {[%emt 0:03:53]} O-O {[%emt 0:01:21]} 13. Rac1 {[%emt 0:01:35]} Qb6 {[%emt 0:02:32]} 14. Na4 {[%emt 0:12:27]} Qa7 {[%emt 0:00:07]} 15. Ne5 {[%emt 0:02:36]} a5 {[%emt 0:03:27]} 16. Nxc6 {[%emt 0:06:07]} bxc6 {[%emt 0:03:30]} 17. Nc5 {[%emt 0:08:31]} Ra8 {[%emt 0:02:36]} 18. b5 {[%emt 0:09:21]} cxb5 {[%emt 0:01:42]} 19. Qxb5 {[%emt 0:00:06]} Nh5 {[%emt 0:03:12]} 20. Bg3 {[%emt 0:06:21]} Nxg3 {[%emt 0:00:55]} 21. hxg3 {[%emt 0:00:05]} Rab8 {[%emt 0:00:35]} 22. Qe2 {[%emt 0:03:48]} Rfc8 {[%emt 0:02:45]} 23. Qa2 {[%emt 0:16:37]} Bxc5 {[%emt 0:00:32]} 24. dxc5 {[%emt 0:00:04]} Rxc5 {[%emt 0:00:03]} 25. Rxc5 {[%emt 0:00:17]} Qxc5 {[%emt 0:00:01]} 26. Rb1 {[%emt 0:00:12]} Rxb1+ {[%emt 0:00:57]} 27. Qxb1 {[%emt 0:00:04]} Qxa3 {[%emt 0:00:05]} 28. Qb8+ {[%emt 0:00:21]} Qf8 {[%emt 0:00:02]} 29. Qa7 {[%emt 0:00:11]} Qd8 {[%emt 0:00:18]} 30. Qa6 {[%emt 0:01:29]} h6 {[%emt 0:00:23]} 31. Qc6 {[%emt 0:00:27]} e5 {[%emt 0:00:43]} 0-1